bitfinex-derivatives/quotes_SOLF0:USTF0_20240911
["timestamp","ask_amount","ask_price","bid_price","bid_amount"]
[1726068776190,1.23453502,130.97,130.87,32.29]
[1726068776392,40.16645202,130.99,130.92,3.819]
[1726068777195,3.8182,130.96,130.92,3.819]
[1726068777997,40.16645202,130.99,130.89,32.29]
[1726068778196,4.0873,130.99,130.92,32.29]
[1726068778691,7.9048,130.99,130.94,3.8184]
[1726068779395,4.0873,130.99,130.89,36.10454273]
[1726068779600,4.0873,130.99,130.89,32.29]
[1726068779801,3.8179,130.97,130.93,3.8189]
[1726068780101,2.7043,130.99,130.89,36.12898758]
[1726068780299,3.8178,130.98,130.93,3.8187]
[1726068780602,3.8178,130.98,130.89,36.12898758]
[1726068780801,2.7043,130.99,130.89,36.12898758]
[1726068781198,2.7043,130.99,130.91,32.29]
[1726068781605,3.8177,130.98,130.91,32.29]
[1726068781799,33.6587,131.04,130.93,32.29]
[1726068782002,3.87807697,131.03,130.93,32.29]
[1726068782204,3.8171,131.0,130.96,3.8179]
[1726068782403,2.6438,131.03,130.93,36.10225103]
[1726068782606,1.23427859,131.02,130.93,36.10225103]
[1726068783397,3.817,131.0,130.93,36.10225103]
[1726068783606,2.6438,131.03,130.93,36.10225103]
[1726068783799,3.8171,131.0,130.93,36.10225103]
[1726068784005,3.8171,131.0,130.96,3.8179]
[1726068784202,2.6438,131.03,130.93,36.10225103]
[1726068784406,3.8168,131.01,130.97,3.8178]
[1726068784707,2.6438,131.03,130.97,3.8178]
[1726068784907,3.8169,131.0,130.96,3.818]
[1726068785309,2.6438,131.03,130.93,36.10225103]
[1726068785502,3.8168,131.01,130.96,3.8179]
[1726068785698,3.77300385,131.01,130.9,34.9399]
[1726068785904,3.77300385,131.01,130.9,38.66821902]
[1726068786104,3.8174,130.99,130.94,3.8185]
[1726068786513,3.8174,130.99,130.9,38.66821902]
[1726068786514,32.29,131.02,130.9,38.66821902]
[1726068786709,3.8171,131.0,130.95,3.8182]
[1726068786912,2.6438,131.03,130.95,3.8182]
[1726068787110,3.8178,130.98,130.93,32.29]
[1726068787412,2.6438,131.03,130.93,32.29]
[1726068787603,3.8169,131.01,130.96,3.8179]
[1726068787801,2.6438,131.03,130.96,3.8179]
[1726068788009,1.23426011,131.02,130.96,3.8179]
[1726068788415,3.8171,131.0,130.96,3.8179]
[1726068789299,3.80555979,131.01,130.91,32.29]
[1726068789505,32.29,131.02,130.91,32.29]
[1726068789711,3.8176,130.98,130.94,3.8185]
[1726068790112,3.90178707,131.01,130.91,32.29]
[1726068790309,2.6438,131.03,130.9,6.37821902]
[1726068790310,20.18,131.0,130.9,26.55821902]
[1726068790500,24.06422178,131.0,130.9,26.55821902]
[1726068791212,20.18,131.0,130.9,26.55821902]
[1726068791416,24.09018787,131.0,130.9,26.55821902]
[1726068791713,24.09018787,131.0,130.9,6.37821902]
[1726068791913,20.18,130.98,130.9,6.37821902]
[1726068792210,32.3,130.99,130.89,3.85112222]
[1726068792411,32.3,130.99,130.88,34.9945]
[1726068792913,32.3,130.99,130.89,3.72812466]
[1726068793214,1.3414,130.98,130.89,3.72812466]
[1726068793617,1.3414,130.98,130.88,34.9945]
[1726068794104,3.8184,130.96,130.92,3.8191]
[1726068795304,32.3,131.02,130.91,32.3]
[1726068795504,1.23428061,131.01,130.91,32.3]
[1726068795713,3.8179,130.97,130.93,3.8188]
[1726068796408,3.8179,130.97,130.94,3.8187]
[1726068796609,3.8177,130.98,130.94,3.8187]
[1726068797112,3.8178,130.97,130.93,3.8189]
[1726068797906,36.17166291,130.99,130.89,32.3]
[1726068798114,32.3,130.97,130.88,2.6945]
[1726068798412,3.8191,130.93,130.87,1.3111]
[1726068798910,3.8191,130.93,130.85,32.3]
[1726068798911,8.02745943,130.96,130.85,32.3]
[1726068799110,32.3,130.95,130.85,32.3]
[1726068799512,3.8193,130.92,130.88,3.8204]
[1726068800012,2.8466,130.96,130.83,3.9976]
[1726068800314,3.88120702,131.0,130.9,32.3]
[1726068800510,3.88120702,131.0,130.9,36.0933537]
[1726068800719,19.70174144,131.02,130.9,36.0933537]
[1726068801013,4.99023686,131.01,130.9,36.0933537]
[1726068801213,3.8172,130.99,130.94,3.8184]
[1726068802112,3.75592055,131.01,130.95,3.8183]
[1726068802315,1.23430832,131.0,130.95,3.8183]
[1726068802512,3.8172,130.99,130.95,3.8183]
[1726068803210,3.817,131.0,130.95,3.8183]
[1726068803914,23.55133276,131.02,130.93,3.8188]
[1726068804111,1.23430552,131.01,130.91,1.3066]
[1726068804610,1.23430552,131.01,130.92,32.3]
[1726068805020,1.23430552,131.01,130.91,36.2384]
[1726068805407,3.817,131.0,130.91,36.2384]
[1726068806206,3.817,131.0,130.95,3.8182]
[1726068806918,23.55102455,131.02,130.91,36.2384]
[1726068807225,1.23428416,131.01,130.91,36.2384]
[1726068807513,1.23428416,131.01,130.96,3.8178]
[1726068807715,6.67359132,131.02,130.91,36.2384]
[1726068807919,1.23429176,131.01,130.91,36.2384]
[1726068808217,2.4685827,131.01,130.91,36.2384]
[1726068808410,1.23429176,131.01,130.91,36.2384]
[1726068808616,3.8172,130.99,130.95,3.8182]
[1726068810015,3.8178,130.97,130.93,3.8189]
[1726068810222,32.3,131.0,130.9,3.7933537]
[1726068810421,32.3,131.0,130.88,32.3]
[1726068810613,1.23429176,131.01,130.91,32.3]
[1726068810809,1.23430849,131.0,130.92,3.7774977]
[1726068811114,3.817,131.0,130.96,3.8181]
[1726068811315,1.23429176,131.01,130.93,3.83202322]
[1726068811510,1.23429176,131.01,130.91,32.3]
[1726068811715,1.23429176,131.01,130.91,36.13011332]
[1726068811913,3.8175,130.98,130.93,3.8188]
[1726068812218,1.23429176,131.01,130.91,36.13011332]
[1726068812420,3.8181,130.97,130.92,3.8191]
[1726068812614,1.23429176,131.01,130.91,36.13011332]
[1726068812811,1.23431475,131.0,130.91,36.13011332]
[1726068813919,3.818,130.97,130.93,3.8187]
[1726068814218,1.23429176,131.01,130.93,3.8187]
[1726068814416,1.23433783,131.0,130.93,3.8187]
[1726068814616,3.818,130.97,130.93,3.8187]
[1726068814815,21.41429176,131.01,130.91,3.83011332]
[1726068815012,3.8176,130.98,130.91,3.83011332]
[1726068815224,21.41429176,131.01,130.9,20.18]
[1726068815428,21.41429176,131.01,130.92,20.18]
[1726068815429,1.23430559,131.0,130.92,20.18]
[1726068815722,3.8171,131.0,130.92,20.18]
[1726068816318,3.8172,130.99,130.95,3.8182]
[1726068816816,3.8172,130.99,130.96,3.8181]
[1726068817225,3.8171,131.0,130.96,3.8181]
[1726068818624,3.8167,131.01,130.97,3.8177]
[1726068819326,3.8171,131.0,130.93,7.90614103]
[1726068819727,3.8171,131.0,130.96,3.8179]
[1726068819919,2.824,131.02,130.93,7.90614103]
[1726068820127,5.05097097,131.01,130.95,20.18]
[1726068820427,3.8167,131.01,130.95,20.18]
[1726068820626,3.8167,131.01,130.97,3.8176]
[1726068820833,2.824,131.02,130.95,20.18]
[1726068821021,21.41427224,131.01,130.91,3.8194]
[1726068821220,20.18,130.99,130.91,3.89224072]
[1726068821421,3.8179,130.97,130.89,24.1642]
[1726068821724,20.18,130.99,130.92,3.819]
[1726068821920,3.8182,130.96,130.92,3.819]
[1726068822723,3.8179,130.97,130.93,3.819]
[1726068822931,20.18,130.99,130.9,3.80823277]
[1726068823117,20.18,131.01,130.89,24.1642]
[1726068823326,3.818,130.97,130.89,24.1642]
[1726068823520,20.18,131.01,130.89,24.1642]
[1726068823825,3.818,130.97,130.93,3.8189]
[1726068824623,3.8176,130.98,130.94,3.8186]
[1726068824824,20.18,131.01,130.89,24.1642]
[1726068825023,1.23430638,131.0,130.89,24.1642]
[1726068825429,3.8178,130.97,130.93,3.8188]
[1726068826922,3.817,131.0,130.91,3.88816744]
[1726068827124,2.824,131.02,130.91,20.18]
[1726068827327,1.23429781,131.01,130.92,3.78351539]
[1726068828936,1.23429781,131.01,130.91,20.18]
[1726068829136,2.824,131.02,130.93,20.18]
[1726068829438,2.824,131.02,130.97,3.8177]
[1726068829629,2.824,131.02,130.93,20.18]
[1726068830233,3.817,131.0,130.96,3.8179]
[1726068831042,3.8173,130.99,130.95,3.8183]
[1726068831533,23.004,131.02,130.95,3.8183]
[1726068831729,3.8172,131.0,130.95,3.8183]
[1726068832133,23.004,131.02,130.95,3.8183]
[1726068832436,1.23429204,131.01,130.95,3.8183]
[1726068832736,3.8175,130.99,130.92,20.18]
[1726068832935,23.004,131.02,130.92,20.18]
[1726068833237,1.23429285,131.01,130.94,3.8185]
[1726068833433,3.8174,130.99,130.94,3.8185]
[1726068833737,23.004,131.02,130.92,20.18]
[1726068833938,3.8177,130.98,130.92,20.18]
[1726068834140,3.8177,130.98,130.94,3.8184]
[1726068834328,23.004,131.02,130.92,20.18]
[1726068834528,1.23429826,131.01,130.93,20.18]
[1726068834936,5.05109826,131.01,130.96,3.8178]
[1726068835132,2.824,131.02,130.96,3.8178]
[1726068835637,3.8171,131.0,130.96,3.8178]
[1726068837141,3.8173,130.99,130.95,3.8183]
[1726068837334,20.18,131.0,130.89,24.1642]
[1726068837534,20.18,131.0,130.9,6.40151153]
[1726068837734,3.8178,130.98,130.93,3.819]
[1726068837935,3.8178,130.98,130.89,24.1642]
[1726068838340,3.8178,130.98,130.94,3.8185]
[1726068838836,3.8173,130.99,130.95,3.8183]
[1726068839040,20.18,131.0,130.9,6.40043128]
[1726068839237,20.18,131.0,130.89,24.1642]
[1726068839543,3.8174,130.99,130.95,3.8182]
[1726068839738,3.8174,130.99,130.92,3.84327743]
[1726068839938,3.8174,130.99,130.95,3.8182]
[1726068840139,3.8176,130.98,130.95,3.8182]
[1726068840339,20.18,131.01,130.95,3.8182]
[1726068840539,1.23432471,131.0,130.91,24.0522173]
[1726068840741,3.8181,130.96,130.89,24.1642]
[1726068841439,3.8179,130.97,130.93,3.819]
[1726068842033,3.8181,130.96,130.92,3.8191]
[1726068842839,3.8179,130.97,130.93,3.8187]
[1726068843334,20.18,131.01,130.9,10.20629952]
[1726068843540,20.18,131.01,130.89,24.1642]
[1726068843740,1.23430597,131.0,130.9,6.40080452]
[1726068843943,3.8177,130.98,130.94,3.8185]
[1726068845043,20.18,131.01,130.93,3.8189]
[1726068845747,3.818,130.97,130.93,3.8189]
[1726068847240,3.818,130.97,130.94,3.8186]
[1726068847446,2.824,131.02,130.93,20.18]
[1726068847637,1.23428172,131.01,130.93,20.18]
[1726068847840,5.05118172,131.01,130.93,20.18]
[1726068848037,1.23428172,131.01,130.93,20.18]
[1726068848249,12.61093329,131.01,130.93,23.99330685]
[1726068848450,3.8174,130.99,130.95,3.8182]
[1726068848847,3.8174,130.99,130.93,23.99330685]
[1726068849042,3.8174,130.99,130.96,3.8181]
[1726068849842,3.8174,130.99,130.93,3.81330685]
[1726068850153,20.18,131.01,130.91,23.99043217]
[1726068851552,3.8177,130.98,130.94,3.8185]
[1726068851754,20.18,131.01,130.94,3.8185]
[1726068852548,3.8177,130.98,130.94,3.8185]
[1726068853152,3.8177,130.98,130.91,23.99043217]
[1726068853553,12.61124734,131.0,130.91,23.99043217]
[1726068853953,12.61124734,131.0,130.95,3.8183]
[1726068854361,3.8174,130.99,130.95,3.8183]
[1726068854757,20.18,131.01,130.94,3.8185]
[1726068854958,1.23430552,131.0,130.94,3.8185]
[1726068855264,1.23430552,131.0,130.91,23.99043217]
[1726068855459,20.18,131.01,130.91,20.18]
[1726068855762,20.18,130.99,130.89,21.5098]
[1726068856160,3.8179,130.97,130.93,3.8188]
[1726068857561,20.18,130.99,130.89,21.5098]
[1726068857751,20.18,130.99,130.91,20.18]
[1726068858155,3.8177,130.98,130.91,20.18]
[1726068858363,3.8177,130.98,130.94,3.8186]
[1726068859163,23.9974,130.99,130.95,3.8183]
[1726068860060,3.8174,130.99,130.95,3.8183]
[1726068860456,3.817,131.0,130.96,3.818]
[1726068861257,3.8172,130.99,130.96,3.818]
[1726068861967,3.8172,130.99,130.95,3.8182]
[1726068862261,3.8172,130.99,130.91,20.18]
[1726068862262,20.18,130.97,130.88,1.3399]
[1726068862459,2.7331,130.96,130.88,1.3399]
[1726068862654,2.7331,130.96,130.89,6.42037023]
[1726068862859,6.54336866,130.96,130.9,3.8196]
[1726068863262,7.85366866,130.96,130.9,3.8196]
[1726068863465,3.8185,130.95,130.91,3.8195]
[1726068863860,4.0434,130.96,130.88,1.3399]
[1726068863861,7.8616,130.96,130.88,1.3399]
[1726068864058,4.0434,130.96,130.89,6.41486785]
[1726068864259,4.0434,130.96,130.88,1.3399]
[1726068864458,4.0434,130.96,130.89,6.41392592]
[1726068864767,4.0434,130.96,130.88,21.5199]
[1726068864972,4.0434,130.96,130.93,3.8188]
[1726068865262,4.0434,130.96,130.88,21.5199]
[1726068865263,20.18,130.94,130.9,6.41166511]
[1726068865762,28.05926914,130.96,130.87,6.41166511]
[1726068865966,28.05926914,130.96,130.88,6.41166511]
[1726068866161,31.87736914,130.96,130.91,3.8193]
[1726068866357,28.05926914,130.96,130.91,3.8193]
[1726068866563,20.18,130.94,130.85,1.2989]
[1726068866869,20.18,130.94,130.86,6.4178256]
[1726068867170,20.18,130.94,130.87,6.41973959]
[1726068867365,20.18,130.94,130.85,11.56778633]
[1726068867571,20.18,130.94,130.9,3.8197]
[1726068867968,20.18,130.94,130.88,3.8203]
[1726068868159,20.18,130.94,130.85,1.2989]
[1726068868564,23.9987,130.94,130.88,3.8202]
[1726068868858,23.9987,130.94,130.85,1.2989]
[1726068869071,23.9987,130.94,130.84,21.4936]
[1726068869268,23.9987,130.94,130.85,6.41919711]
[1726068869464,23.9987,130.94,130.84,31.76290494]
[1726068869665,23.9987,130.94,130.85,6.41812201]
[1726068869870,23.9987,130.94,130.84,31.76290494]
[1726068870062,28.05926914,130.96,130.86,20.18]
[1726068870260,28.05926914,130.96,130.88,20.18]
[1726068870865,28.05926914,130.96,130.91,3.8194]
[1726068871072,28.05926914,130.96,130.88,20.18]
[1726068871367,28.05926914,130.96,130.91,3.8193]
[1726068872168,28.05926914,130.96,130.92,3.8192]
[1726068872381,28.05926914,130.96,130.88,20.18]
[1726068872765,28.05926914,130.96,130.92,3.8191]
[1726068873974,28.05926914,130.96,130.88,20.18]
[1726068874472,28.05926914,130.96,130.92,3.8192]
[1726068874880,7.87926914,130.96,130.88,20.18]
[1726068875580,4.0434,130.96,130.88,20.18]
[1726068875778,4.0434,130.96,130.89,6.41038312]
[1726068875968,4.0434,130.96,130.89,20.18]
[1726068876479,4.0434,130.96,130.94,3.8184]
[1726068876778,4.0434,130.96,130.89,20.18]
[1726068877169,4.0434,130.96,130.94,3.8184]
[1726068877568,4.0434,130.96,130.89,20.18]
[1726068877782,7.93093724,130.96,130.89,20.18]
[1726068877973,4.0434,130.96,130.89,20.18]
[1726068878374,4.0434,130.96,130.95,3.8184]
[1726068878575,4.0434,130.96,130.89,20.18]
[1726068878877,4.0434,130.96,130.94,3.8185]
[1726068879473,7.7954055,130.96,130.87,22.8389]
[1726068879670,7.7954055,130.96,130.88,6.41532841]
[1726068879882,4.0434,130.96,130.87,22.8389]
[1726068880081,4.0434,130.96,130.94,3.8185]
[1726068880395,2.7331,130.96,130.89,20.18]
[1726068881182,2.7331,130.96,130.94,3.8185]
[1726068884974,6.47851564,130.96,130.94,3.8185]
[1726068885383,2.7331,130.96,130.95,3.8184]
[1726068887482,12.92,130.99,130.92,12.92]
[1726068887686,15.5901,130.99,130.92,12.92]
[1726068888284,15.5901,130.99,130.96,3.818]
[1726068888684,15.5901,130.99,130.92,12.92]
[1726068888885,15.5901,130.99,130.96,3.8179]
[1726068889287,15.5901,130.99,130.92,12.92]
[1726068889488,15.5901,130.99,130.95,3.8182]
[1726068890287,12.92,130.97,130.95,3.8182]
[1726068890979,12.92,130.97,130.91,12.92]
[1726068891180,3.89793731,130.96,130.94,3.8186]
[1726068891391,3.89793731,130.96,130.91,12.92]
[1726068892184,2.6701,130.99,130.91,12.92]
[1726068892391,12.92,130.98,130.95,3.8182]
[1726068892997,12.92,130.98,130.94,3.8185]
[1726068893294,12.92,130.98,130.9,12.92]
[1726068893686,12.92,130.98,130.95,3.8183]
[1726068895888,12.92,130.98,130.94,3.8186]
[1726068896094,12.92,130.98,130.9,12.92]
[1726068896687,12.92,130.96,130.9,12.92]
[1726068897793,12.92,130.96,130.94,3.8185]
[1726068900394,12.92,130.97,130.91,12.92]
[1726068900599,12.92,130.98,130.91,12.92]
[1726068900993,12.92,130.97,130.9,12.92]
[1726068901697,12.92,130.97,130.94,3.8185]
[1726068902599,12.92,130.95,130.93,3.8187]
[1726068902799,12.92,130.97,130.9,12.92]
[1726068903000,12.92,130.97,130.94,3.8185]
[1726068903294,16.77141642,130.96,130.89,12.92]
[1726068903495,12.92,130.96,130.89,12.92]
[1726068903698,12.92,130.96,130.92,3.819]
[1726068904090,16.67858819,130.96,130.89,12.92]
[1726068904495,12.92,130.96,130.89,12.92]
[1726068904699,14.3104,130.97,130.9,12.92]
[1726068905091,16.71393069,130.96,130.89,12.92]
[1726068905602,16.71393069,130.96,130.92,3.8192]
[1726068905788,16.71393069,130.96,130.87,2.6589]
[1726068905994,16.71393069,130.96,130.89,12.92]
[1726068906500,16.71393069,130.96,130.92,3.8191]
[1726068907604,20.53203069,130.96,130.91,3.8194]
[1726068907898,12.92,130.93,130.84,1.3136]
[1726068908105,12.92,130.93,130.87,12.92]
[1726068908897,12.92,130.94,130.88,12.92]
[1726068909103,12.92,130.94,130.91,3.8194]
[1726068909299,12.92,130.94,130.88,12.92]
[1726068909702,16.69368581,130.94,130.9,3.8196]
[1726068909902,16.69368581,130.94,130.88,12.92]
[1726068910601,16.69368581,130.94,130.91,3.8194]
[1726068911107,16.69368581,130.94,130.9,3.8197]
[1726068911407,16.69368581,130.94,130.88,12.92]
[1726068912299,16.69368581,130.94,130.91,3.8195]
[1726068912802,16.69368581,130.94,130.88,12.92]
[1726068913016,18.02238581,130.94,130.9,3.8196]
[1726068913400,18.02238581,130.94,130.88,12.92]
[1726068913602,18.02238581,130.94,130.91,3.8193]
[1726068914406,18.02238581,130.94,130.9,3.8198]
[1726068914810,12.92,130.93,130.87,12.92]
[1726068915301,12.92,130.93,130.89,3.82]
[1726068915694,12.92,130.92,130.89,3.82]
[1726068915995,12.92,130.92,130.87,12.92]
[1726068916199,19.39868581,130.94,130.89,12.92]
[1726068916394,19.39868581,130.94,130.92,3.8191]
[1726068916702,19.39868581,130.94,130.89,12.92]
[1726068916900,15.625,130.94,130.93,3.819]
[1726068917207,12.92,130.95,130.9,12.92]
[1726068917504,12.92,130.95,130.94,3.8187]
[1726068918797,12.92,130.95,130.93,3.8189]
[1726068919493,12.92,130.95,130.89,12.92]
[1726068920711,12.92,130.95,130.93,3.8187]
[1726068921209,12.92,130.94,130.88,12.92]
[1726068921809,12.92,130.95,130.93,3.819]
[1726068922004,12.92,130.94,130.86,16.69727317]
[1726068922244,12.92,130.91,130.86,12.92]
[1726068922505,12.92,130.91,130.89,3.8199]
[1726068922711,12.92,130.91,130.86,12.92]
[1726068923406,12.92,130.91,130.89,3.8201]
[1726068923707,12.92,130.91,130.86,12.92]
[1726068923896,12.92,130.9,130.88,3.8204]
[1726068924305,16.7403,130.89,130.79,9.20901406]
[1726068924501,12.92,130.87,130.81,12.92]
[1726068925002,12.92,130.87,130.84,3.8214]
[1726068925202,12.92,130.87,130.81,12.92]
[1726068925399,12.92,130.87,130.85,3.8213]
[1726068926007,12.92,130.88,130.83,12.92]
[1726068926203,12.61880032,130.95,130.86,12.92]
[1726068926401,12.92,130.93,130.86,12.92]
[1726068926702,12.92,130.91,130.82,16.71661878]
[1726068927006,2.6794,130.95,130.78,3.9772]
[1726068927007,12.92,130.9,130.83,12.92]
[1726068927307,3.73920354,130.89,130.87,3.8207]
[1726068927509,3.73920354,130.89,130.84,12.92]
[1726068927510,12.92,130.9,130.84,12.92]
[1726068928015,12.92,130.9,130.85,12.92]
[1726068928202,12.92,130.91,130.88,3.8202]
[1726068928401,2.6794,130.95,130.85,12.92]
[1726068928602,12.92,130.92,130.85,12.92]
[1726068928808,12.92,130.92,130.88,3.8202]
[1726068929011,12.92,130.92,130.86,12.92]
[1726068929418,12.92,130.91,130.86,12.92]
[1726068929603,12.92,130.91,130.84,6.42843253]
[1726068929604,12.92,130.91,130.84,12.92]
[1726068929806,12.92,130.9,130.84,12.92]
[1726068930105,12.92,130.9,130.87,3.8205]
[1726068930305,3.79432895,130.89,130.84,12.92]
[1726068930903,3.79432895,130.89,130.86,3.8208]
[1726068931312,3.79432895,130.89,130.84,12.92]
[1726068931512,3.79432895,130.89,130.87,3.8207]
[1726068932208,15.6474,130.9,130.78,13.19469903]
[1726068932209,12.92,130.88,130.78,3.9772]
[1726068932515,12.92,130.87,130.81,12.92]
[1726068932812,12.92,130.87,130.84,3.8214]
[1726068933914,12.92,130.87,130.85,3.8212]
[1726068934906,12.92,130.87,130.84,3.8215]
[1726068935109,12.92,130.87,130.79,10.29347889]
[1726068935412,12.92,130.87,130.8,12.92]
[1726068935609,12.92,130.87,130.83,3.8217]
[1726068936507,16.7408,130.87,130.83,3.8217]
[1726068936815,12.92,130.87,130.84,3.8216]
[1726068937512,3.90782635,130.89,130.81,12.92]
[1726068937719,2.7274,130.9,130.84,12.92]
[1726068937720,15.6474,130.9,130.84,12.92]
[1726068938010,2.7274,130.9,130.89,3.8201]
[1726068938418,1.3901,130.92,130.89,3.8201]
[1726068939709,1.3901,130.92,130.87,12.92]
[1726068940106,1.3901,130.92,130.85,20.19]
[1726068940517,26.7296,130.95,130.85,20.19]
[1726068940715,28.0681,130.95,130.85,20.19]
[1726068941317,3.8188,130.94,130.85,20.19]
[1726068941519,24.2496,130.95,130.85,20.19]
[1726068941722,4.0596,130.95,130.87,20.19]
[1726068942019,3.8188,130.94,130.89,3.82]
[1726068944523,3.8192,130.93,130.88,3.8203]
[1726068945029,24.2496,130.95,130.88,3.8203]
[1726068945340,20.19,130.93,130.87,3.8205]
[1726068945527,3.8194,130.92,130.87,3.8205]
[1726068945728,20.19,130.93,130.83,20.19]
[1726068946030,3.8201,130.9,130.83,20.19]
[1726068946233,20.19,130.94,130.79,20.19]
[1726068946428,24.3404,130.89,130.8,6.43667771]
[1726068946631,3.8208,130.87,130.79,26.62667771]
[1726068946830,3.8208,130.87,130.82,3.822]
[1726068947027,3.8208,130.87,130.79,20.19]
[1726068949037,3.8208,130.87,130.83,3.8217]
[1726068949232,28.23897066,130.89,130.79,20.19]
[1726068949638,28.23897066,130.89,130.84,3.8214]
[1726068950942,28.23897066,130.89,130.79,20.19]
[1726068950943,3.8206,130.88,130.83,3.8218]
[1726068951739,28.23897066,130.89,130.79,20.19]
[1726068952237,3.8205,130.88,130.83,3.8217]
[1726068952630,28.23897066,130.89,130.79,20.19]
[1726068953038,32.05927066,130.89,130.84,3.8214]
[1726068953840,32.05927066,130.89,130.79,20.19]
[1726068954842,3.8207,130.88,130.79,20.19]
[1726068955230,28.23897066,130.89,130.84,3.8216]
[1726068955441,28.23897066,130.89,130.79,20.19]
[1726068955646,28.23897066,130.89,130.84,3.8216]
[1726068956139,3.8207,130.88,130.84,3.8216]
[1726068956440,28.23897066,130.89,130.83,3.8218]
[1726068956643,3.8207,130.87,130.83,3.8218]
[1726068956941,28.23897066,130.89,130.83,3.8218]
[1726068957336,3.8206,130.88,130.83,3.8218]
[1726068957739,3.8206,130.88,130.79,20.19]
[1726068957937,28.23897066,130.89,130.79,20.19]
[1726068958134,20.19,130.87,130.78,2.6924]
[1726068958335,20.19,130.87,130.78,9.14214629]
[1726068958539,24.0109,130.87,130.78,9.14214629]
[1726068959048,24.0109,130.87,130.82,3.8219]
[1726068959238,3.821,130.86,130.78,9.14214629]
[1726068960043,3.821,130.86,130.82,3.822]
[1726068960246,3.821,130.86,130.78,9.14214629]
[1726068960941,28.23897066,130.89,130.79,20.19]
[1726068961749,3.8215,130.85,130.81,3.8223]
[1726068962146,12.92,130.84,130.81,3.8223]
[1726068962541,16.7418,130.84,130.8,3.8226]
[1726068962742,12.92,130.82,130.77,12.92]
[1726068962938,12.92,130.81,130.75,12.92]
[1726068963451,16.7425,130.81,130.78,3.8232]
[1726068963940,8.04897066,130.89,130.72,10.32364629]
[1726068963941,16.7428,130.8,130.77,3.8236]
[1726068964142,3.85341795,130.8,130.73,10.32769343]
[1726068964456,3.8231,130.79,130.76,3.8238]
[1726068965346,7.56276848,130.8,130.76,3.8238]
[1726068965547,3.8229,130.8,130.77,3.8236]
[1726068965851,7.68820923,130.8,130.73,16.78732762]
[1726068966050,3.8229,130.8,130.77,3.8235]
[1726068966845,3.8226,130.81,130.78,3.8233]
[1726068967352,27.92011975,130.82,130.78,3.8233]
[1726068967549,20.2,130.86,130.76,20.2]
[1726068968046,20.2,130.86,130.8,3.8227]
[1726068968552,3.8218,130.84,130.8,3.8227]
[1726068969343,3.8219,130.83,130.79,3.8229]
[1726068969552,3.7540156,130.82,130.73,20.2]
[1726068969851,20.2,130.84,130.74,6.45302785]
[1726068970053,3.8224,130.82,130.78,3.8233]
[1726068970251,7.65825742,130.82,130.78,3.8233]
[1726068971255,3.83585742,130.82,130.79,3.823]
[1726068971948,7.65815742,130.82,130.74,6.45173358]
[1726068972350,2.8095,130.83,130.81,3.8222]
[1726068972544,3.8215,130.85,130.77,20.2]
[1726068973154,20.2,130.85,130.77,20.2]
[1726068973351,20.2,130.85,130.75,20.2]
[1726068974554,3.822,130.83,130.8,3.8226]
[1726068974858,20.2,130.87,130.77,20.2]
[1726068975354,20.2,130.87,130.78,20.2]
[1726068975652,3.8207,130.87,130.84,3.8214]
[1726068976255,3.8214,130.85,130.78,20.2]